bitfinex-derivatives/quotes_SOLF0:USTF0_20250625
["timestamp","ask_amount","ask_price","bid_price","bid_amount"]
[1750854840546,37.80276253,145.69,145.6,47.42042597]
[1750854840750,3.40276253,145.66,145.6,38.9414]
[1750854841145,3.40276253,145.66,145.65,6.8617]
[1750854841353,3.40276253,145.66,145.6,13.00042597]
[1750854841655,3.40276253,145.64,145.6,4.5214]
[1750854842052,3.40276253,145.64,145.61,6.8636]
[1750854842357,10.26566253,145.64,145.58,2.3027]
[1750854842557,10.26566253,145.64,145.61,6.8637]
[1750854842947,3.40276253,145.64,145.58,2.3027]
[1750854843752,3.40276253,145.64,145.62,6.8632]
[1750854843953,3.40276253,145.64,145.58,2.3027]
[1750854844152,34.4,145.65,145.58,2.3027]
[1750854844153,3.40276253,145.61,145.58,2.3027]
[1750854844462,3.40276253,145.61,145.6,6.8641]
[1750854845363,3.40276253,145.61,145.59,6.8648]
[1750854845755,37.80276253,145.61,145.59,6.8648]
[1750854846151,37.80276253,145.61,145.58,6.8654]
[1750854846351,3.40276253,145.59,145.58,6.8654]
[1750854847064,37.80276253,145.61,145.6,6.8645]
[1750854847459,3.40276253,145.61,145.6,6.8645]
[1750854853678,3.40276253,145.63,145.61,6.8636]
[1750854855574,3.40276253,145.63,145.62,6.8636]
[1750854856282,34.4,145.64,145.63,6.8631]
[1750854856476,37.80276253,145.64,145.63,6.8631]
[1750854856777,3.40276253,145.66,145.6,8.47902597]
[1750854856973,3.40276253,145.66,145.65,6.8621]
[1750854859079,34.4,145.67,145.66,6.8617]
[1750854859275,37.80276253,145.7,145.63,11.8817885]
[1750854859471,37.80276253,145.7,145.69,6.8603]
[1750854864784,34.4,145.7,145.69,6.8603]
[1750854865488,34.4,145.7,145.64,8.47902597]
[1750854867293,34.4,145.7,145.69,6.8603]
[1750854868585,34.4,145.7,145.68,6.8607]
[1750854868791,3.40276253,145.69,145.64,8.47902597]
[1750854869091,3.40276253,145.69,145.63,2.4009]
[1750854869092,3.40276253,145.69,145.63,10.87992597]
[1750854869386,3.40276253,145.69,145.63,2.4009]
[1750854869889,10.26326253,145.69,145.67,6.8611]
[1750854871191,10.26326253,145.69,145.66,6.8614]
[1750854871583,10.26326253,145.69,145.63,2.4009]
[1750854871791,10.26326253,145.69,145.66,6.8614]
[1750854872392,3.40276253,145.67,145.65,6.8619]
[1750854872985,3.40276253,145.67,145.64,6.8624]
[1750854873287,3.40276253,145.65,145.64,6.8624]
[1750854877187,3.40276253,145.65,145.61,34.4]
[1750854877188,3.40276253,145.67,145.66,6.8616]
[1750854878294,10.26396253,145.67,145.61,42.87902597]
[1750854878599,2.2682,145.69,145.6,10.83642597]
[1750854878600,3.40276253,145.65,145.6,10.83642597]
[1750854878992,3.40276253,145.65,145.64,6.8626]
[1750854879990,3.40276253,145.65,145.63,6.8628]
[1750854880389,10.26506253,145.65,145.63,6.8628]
[1750854881095,3.40276253,145.65,145.6,10.83642597]
[1750854882197,34.4,145.66,145.64,6.8626]
[1750854882405,34.4,145.66,145.62,8.47902597]
[1750854882599,3.40276253,145.67,145.62,8.47902597]
[1750854883001,3.40276253,145.67,145.66,6.8617]
[1750854884306,44.66336253,145.69,145.67,6.861]
[1750854885606,37.80276253,145.69,145.62,45.11002597]
[1750854885812,3.40276253,145.66,145.62,34.4]
[1750854886006,3.40276253,145.66,145.6,24.56522597]
[1750854886709,3.40276253,145.66,145.6,10.83642597]
[1750854887210,10.26466253,145.66,145.63,6.8626]
[1750854888111,3.40276253,145.66,145.6,10.83642597]
[1750854888310,3.40276253,145.66,145.61,8.47902597]
[1750854888716,3.40276253,145.66,145.64,6.8623]
[1750854889204,3.40276253,145.66,145.6,10.83642597]
[1750854890212,10.26466253,145.66,145.64,6.8625]
[1750854891104,6.8624,145.65,145.63,6.8628]
[1750854896807,6.8624,145.65,145.64,6.8626]
[1750854897411,3.40276253,145.66,145.64,6.8626]
[1750854897412,10.26456253,145.66,145.64,6.8626]
[1750854900315,10.26456253,145.66,145.65,6.8621]
[1750854902908,10.26456253,145.66,145.64,6.8623]
[1750854905225,3.40276253,145.68,145.63,8.53246708]
[1750854905418,3.40276253,145.68,145.64,8.53246708]
[1750854905616,3.40276253,145.68,145.63,8.53246708]
[1750854906213,10.26366253,145.68,145.66,6.8613]
[1750854910227,3.40276253,145.68,145.67,6.8612]
[1750854910721,34.4,145.69,145.68,6.8607]
[1750854911427,3.40276253,145.7,145.69,6.8603]
[1750854911819,44.64176253,145.72,145.66,8.53246708]
[1750854912022,42.14734409,145.72,145.7,6.8595]
[1750854912218,37.78276253,145.72,145.67,8.53246708]
[1750854912425,44.64186253,145.72,145.67,8.53246708]
[1750854913129,6.8593,145.71,145.69,6.8599]
[1750854914918,34.38,145.72,145.67,8.53246708]
[1750854915131,34.38,145.72,145.68,8.53246708]
[1750854915332,34.38,145.72,145.71,6.8593]
[1750854916835,128.18630196,145.75,145.73,6.8583]
[1750854917031,44.64036253,145.75,145.73,6.8583]
[1750854917420,37.78276253,145.75,145.67,8.53246708]
[1750854917625,3.40276253,145.7,145.66,8.53246708]
[1750854918032,3.40276253,145.7,145.68,6.8605]
[1750854921931,3.40276253,145.7,145.67,6.861]
[1750854922125,3.40276253,145.68,145.67,6.861]
[1750854922331,3.40276253,145.68,145.63,8.53246708]
[1750854922531,3.40276253,145.66,145.64,6.8623]
[1750854923331,3.40276253,145.66,145.65,6.8621]
[1750854931051,3.40276253,145.66,145.64,6.8624]
[1750854931549,3.40276253,145.66,145.62,8.53246708]
[1750854932251,3.40276253,145.66,145.64,6.8622]
[1750854932451,3.40276253,145.66,145.62,8.53246708]
[1750854934155,3.40276253,145.66,145.65,6.8621]
[1750854938061,3.40276253,145.66,145.62,8.53246708]
[1750854938260,3.40276253,145.64,145.61,8.53246708]
[1750854939459,3.40276253,145.66,145.62,8.53246708]
[1750854941557,3.40276253,145.66,145.64,6.8624]
[1750854941758,10.26466253,145.66,145.62,8.53246708]
[1750854941963,3.40276253,145.66,145.62,8.53246708]
[1750854942150,3.40276253,145.66,145.65,6.8621]
[1750854942351,34.38,145.67,145.63,8.53246708]
[1750854942765,34.38,145.67,145.66,6.8617]
[1750854942956,3.40276253,145.72,145.64,11.93522961]
[1750854943160,3.40276253,145.72,145.7,6.8595]
[1750854944053,637.44086253,145.74,145.71,6.8593]
[1750854944253,630.58276253,145.74,145.68,8.53246708]
[1750854944555,630.58276253,145.74,145.7,6.8595]
[1750854944848,6.8586,145.73,145.7,6.8595]
[1750854945860,6.8586,145.73,145.71,6.8593]
[1750854946958,3.40276253,145.72,145.67,8.53246708]
[1750854947159,3.40276253,145.69,145.65,10.88696708]
[1750854947350,3.40276253,145.69,145.64,8.53246708]
[1750854947858,10.26336253,145.69,145.66,6.8613]
[1750854948458,10.26336253,145.69,145.67,6.8611]
[1750854948655,10.26336253,145.69,145.64,8.53246708]
[1750854948656,3.40276253,145.69,145.64,8.53246708]
[1750854949668,3.40276253,145.69,145.67,6.8609]
[1750854950353,10.26306253,145.69,145.67,6.8609]
[1750854951849,3.40276253,145.69,145.68,6.8607]
[1750854952467,3.40276253,145.69,145.67,6.8609]
[1750854952963,34.36,145.73,145.71,6.8593]
[1750854953167,42.15665662,145.73,145.71,6.8593]
[1750854953567,42.60713115,145.73,145.71,6.8593]
[1750854954158,49.46553115,145.73,145.71,6.8593]
[1750854954359,44.62116253,145.73,145.71,6.8593]
[1750854955267,41.2184,145.73,145.71,6.8593]
[1750854955569,44.62116253,145.73,145.71,6.8593]
[1750854957160,44.62116253,145.73,145.7,6.8596]
[1750854957161,6.8589,145.72,145.7,6.8596]
[1750854957562,42.14931684,145.73,145.7,6.8596]
[1750854957777,49.46457711,145.73,145.7,6.8596]
[1750854958069,37.76276253,145.73,145.7,6.8596]
[1750854958364,42.60577729,145.73,145.7,6.8596]
[1750854958572,6.8589,145.72,145.7,6.8596]
[1750854960770,42.60921102,145.73,145.66,46.29522961]
[1750854961070,34.36,145.76,145.68,11.93522961]
[1750854961375,39.20561615,145.76,145.74,6.8577]
[1750854961765,34.36,145.76,145.7,13.12896708]
[1750854961972,34.36,145.76,145.75,6.8574]
[1750854962273,34.36,145.76,145.71,10.75936708]
[1750854962669,34.36,145.76,145.72,8.53246708]
[1750854963271,34.36,145.76,145.75,6.8574]
[1750854963770,34.36,145.76,145.7,47.48896708]
[1750854963968,3.40276253,145.74,145.7,10.78036708]
[1750854964969,3.40276253,145.74,145.73,6.8584]
[1750854968377,10.26076253,145.74,145.72,6.8586]
[1750854968978,3.40276253,145.74,145.72,6.8586]
[1750854969477,3.40276253,145.74,145.73,6.8584]
[1750854972877,10.26046253,145.75,145.73,6.8584]
[1750854973780,44.61996253,145.76,145.73,6.8584]
[1750854974675,44.61996253,145.76,145.74,6.8578]
[1750854976284,37.76276253,145.76,145.7,4.4725]
[1750854976469,37.76276253,145.76,145.7,13.00496708]
[1750854976672,37.76276253,145.76,145.7,4.4725]
[1750854977777,3.40276253,145.74,145.7,4.4725]
[1750854978983,3.40276253,145.74,145.72,6.8585]
[1750854980081,3.40276253,145.74,145.73,6.8584]
[1750854980288,6.8578,145.75,145.73,6.8584]
[1750854980683,44.61996253,145.76,145.7,4.4725]
[1750854980982,44.61996253,145.76,145.73,6.8579]
[1750854981380,44.61996253,145.76,145.7,4.4725]
[1750854981584,37.76276253,145.76,145.7,13.00496708]
[1750854981979,37.76276253,145.76,145.71,8.53246708]
[1750854982284,34.36,145.76,145.71,8.53246708]
[1750854982580,34.36,145.76,145.7,13.00496708]
[1750854983079,34.36,145.76,145.75,6.8574]
[1750854983672,10.25906253,145.78,145.76,6.8567]
[1750854984892,37.84276253,145.82,145.75,3.40276253]
[1750854985184,83.69573532,145.84,145.77,3.40276253]
[1750854985776,83.69573532,145.84,145.82,6.8539]
[1750854986180,41.2929,145.85,145.82,6.8539]
[1750854986584,6.8535,145.84,145.77,3.40276253]
[1750854986780,3.40276253,145.84,145.76,49.82996708]
[1750854987087,6.8539,145.83,145.8,6.8549]
[1750854987582,6.8539,145.83,145.76,41.2975]
[1750854988578,3.40276253,145.82,145.76,4.6035]
[1750854988981,6.855,145.81,145.78,6.8558]
[1750854989388,3.40276253,145.8,145.76,4.6035]
[1750854989589,10.25806253,145.8,145.77,6.8564]
[1750854990280,3.40276253,145.8,145.78,6.856]
[1750854992275,10.25796253,145.8,145.78,6.856]
[1750854993287,3.40276253,145.8,145.78,6.856]
[1750854994190,3.40276253,145.8,145.79,6.8555]
[1750854995193,3.40276253,145.8,145.78,6.8558]
[1750854995886,9.29765678,145.84,145.73,37.82276253]
[1750854996091,3.40276253,145.81,145.73,42.45726253]
[1750854996594,3.40276253,145.81,145.75,3.40276253]
[1750854996891,6.8543,145.82,145.8,6.8551]
[1750854997384,3.40276253,145.83,145.8,6.8551]
[1750854997789,10.25666253,145.83,145.8,6.8551]
[1750854998384,3.40276253,145.83,145.79,6.8554]
[1750854998587,3.40276253,145.81,145.73,42.45726253]
[1750854999994,3.40276253,145.81,145.8,6.8551]
[1750855000401,3.40276253,145.83,145.75,3.40276253]
[1750855000587,3.40276253,145.83,145.81,6.8543]
[1750855001091,10.25666253,145.83,145.8,6.8549]
[1750855001491,10.25666253,145.83,145.76,2.3402]
[1750855002801,10.25666253,145.83,145.8,6.8548]
[1750855002990,10.25666253,145.83,145.76,2.3402]
[1750855003186,3.40276253,145.83,145.76,2.3402]
[1750855003497,37.84276253,145.85,145.77,37.82276253]
[1750855003886,44.69576253,145.85,145.78,4.686]
[1750855004103,44.69576253,145.85,145.82,6.8537]
[1750855004488,44.69576253,145.85,145.78,4.686]
[1750855005097,37.84276253,145.85,145.83,6.8534]
[1750855005491,34.44,145.85,145.83,6.8534]
[1750855005704,3.40276253,145.84,145.82,6.8539]
[1750855005890,37.84276253,145.85,145.82,6.8539]
[1750855006198,6.8532,145.84,145.82,6.8539]
[1750855006995,6.8537,145.83,145.81,6.8544]
[1750855007194,3.40276253,145.83,145.78,2.2575]
[1750855007393,3.40276253,145.83,145.77,34.42]
[1750855007598,3.40276253,145.83,145.8,6.8548]
[1750855007905,10.25686253,145.83,145.8,6.8548]
[1750855008501,3.40276253,145.83,145.81,6.8545]
[1750855008705,6.8534,145.84,145.77,34.42]
[1750855008901,3.40276253,145.84,145.77,36.6319]
[1750855010308,3.40276253,145.84,145.82,6.8539]
[1750855011102,10.25606253,145.84,145.82,6.8539]
[1750855013308,3.40276253,145.84,145.77,36.6319]
[1750855013804,3.40276253,145.84,145.82,6.8538]
[1750855014198,34.44,145.85,145.77,50.3446]
[1750855014396,8.30605779,145.87,145.84,6.8529]
[1750855014600,3.40276253,145.87,145.8,3.40276253]
[1750855015108,10.25476253,145.87,145.85,6.8525]
[1750855015409,3.40276253,145.87,145.8,3.40276253]
[1750855015611,34.42,145.88,145.87,6.8518]
[1750855016794,34.42,145.88,145.82,5.74956253]
[1750855016795,34.42,145.88,145.86,6.852]
[1750855017797,37.82276253,145.88,145.82,2.3468]
[1750855018407,44.67436253,145.88,145.85,6.8527]
[1750855018903,37.82276253,145.88,145.86,6.8519]
[1750855019113,34.42,145.88,145.82,5.74956253]
[1750855019500,3.40276253,145.9,145.88,6.8513]
[1750855019697,34.4,145.91,145.85,34.4]
[1750855019901,34.4,145.91,145.9,6.8504]
[1750855020105,11.75805815,145.93,145.86,3.40276253]
[1750855020106,3.40276253,145.93,145.86,3.40276253]
[1750855020413,3.40276253,145.97,145.88,3.40276253]
[1750855020612,6.8478,145.96,145.89,34.4]
[1750855020915,3.40276253,145.97,145.89,34.4]
[1750855021211,3.40276253,145.97,145.94,6.8482]
[1750855021601,10.25006253,145.97,145.94,6.8482]
[1750855021807,10.25006253,145.97,145.93,6.8487]
[1750855022911,6.8477,145.96,145.9,3.40276253]
[1750855023204,3.40276253,145.97,145.9,3.40276253]
[1750855023807,6.8481,145.95,145.92,6.849]
[1750855024310,3.40276253,145.97,145.9,3.40276253]
[1750855024511,6.8478,145.96,145.93,6.8487]
[1750855025013,6.8478,145.96,145.9,3.40276253]
[1750855025408,34.4,145.99,145.9,3.40276253]
[1750855025618,37.80276253,145.99,145.9,3.40276253]
[1750855025809,6.8469,145.98,145.9,3.40276253]
[1750855026204,6.8469,145.98,145.95,6.8478]
[1750855026813,3.40276253,145.97,145.94,6.8483]
[1750855027014,3.40276253,145.97,145.9,3.40276253]
[1750855027416,10.25026253,145.97,145.94,6.8482]
[1750855028217,6.8476,145.96,145.94,6.8482]
[1750855029218,3.40276253,146.0,145.93,34.54]
[1750855029411,3.40276253,146.0,145.94,34.54]
[1750855029715,3.40276253,146.0,145.98,6.8463]
[1750855030415,37.94276253,146.02,145.94,37.94276253]
[1750855030816,6.8455,146.01,145.99,6.8459]
[1750855031634,44.78776253,146.02,145.99,6.8459]
[1750855031928,37.94276253,146.02,145.94,37.94276253]
[1750855032116,37.94276253,146.02,145.95,2.4173]
[1750855032312,44.78756253,146.02,145.95,2.4173]
[1750855033326,10.24756253,146.02,145.95,2.4173]
[1750855033530,3.40276253,146.02,145.95,2.4173]
[1750855033734,3.40276253,146.02,146.0,6.8452]
[1750855034228,6.8444,146.03,146.01,6.8451]
[1750855034535,10.24716253,146.03,146.01,6.8451]
[1750855034935,44.76676253,146.04,146.01,6.8451]
[1750855036138,6.8443,146.03,146.01,6.8451]
[1750855037438,44.76666253,146.04,145.98,34.52]
[1750855037733,34.52,146.04,145.98,34.52]
[1750855037931,37.92276253,146.04,146.02,6.8443]
[1750855038130,37.92276253,146.04,145.98,34.52]
[1750855038131,37.92276253,146.04,145.99,2.2109]
[1750855038734,3.40276253,146.02,145.96,34.52]
[1750855039335,3.40276253,146.02,146.0,6.8454]
[1750855039741,44.76676253,146.04,146.01,6.8452]
[1750855039937,3.40276253,146.04,145.96,37.92276253]
[1750855040240,3.40276253,146.04,146.02,6.8445]
[1750855040937,10.24686253,146.04,146.01,6.845]
[1750855041335,10.24686253,146.04,145.96,37.92276253]
[1750855041737,10.24686253,146.04,145.98,3.40276253]
[1750855041932,3.40276253,146.04,145.98,3.40276253]
[1750855042132,6.8436,146.05,146.02,6.8445]
[1750855042438,10.24636253,146.05,146.02,6.8445]
[1750855043138,3.40276253,146.05,146.03,6.8442]
[1750855044140,10.24616253,146.05,146.02,6.8445]
[1750855044334,10.24616253,146.05,145.99,36.9432]
[1750855044335,3.40276253,146.03,145.97,34.52]
[1750855044944,10.24746253,146.03,146.0,6.8454]
[1750855046239,6.8448,146.02,145.95,5.82006253]
[1750855046436,6.8448,146.02,145.97,34.52]
[1750855046743,6.8448,146.02,146.0,6.8456]
[1750855047348,10.24756253,146.02,146.0,6.8456]
[1750855047546,10.24756253,146.02,145.95,5.82006253]
[1750855047547,4.96325548,146.06,146.05,6.8433]
[1750855047733,3.40276253,146.16,146.03,36.26]
[1750855047938,36.26,146.15,146.03,36.26]
[1750855048138,3.40276253,146.1,146.03,36.26]
[1750855048537,39.66276253,146.11,146.02,6.8906]
[1750855048836,3.40276253,146.07,146.02,2.4029]
[1750855049040,3.40276253,146.07,145.98,41.86416253]
[1750855049246,39.66276253,146.07,145.98,7.90266253]
[1750855049543,39.66276253,146.07,145.98,40.7599]
[1750855049741,39.66276253,146.07,145.98,44.16266253]
[1750855050049,591.46,146.14,146.0,3.40276253]
[1750855050248,41.82,146.23,146.01,2.2278]
[1750855050440,6.836,146.21,146.12,3.40276253]
[1750855050943,10.23866253,146.21,146.15,6.8383]
[1750855051152,6.8359,146.21,146.1,41.82]
[1750855051335,3.40276253,146.19,146.1,41.82]
[1750855051535,10.23966253,146.19,146.09,6.7277]
[1750855051735,3.40276253,146.17,146.09,48.5477]
[1750855051945,3.40276253,146.17,146.12,6.84]
[1750855052644,3.40276253,146.16,146.09,48.5477]
[1750855052837,2.2433,146.18,146.09,48.5477]
[1750855053340,5.64606253,146.18,146.1,3.40276253]
[1750855053648,5.64606253,146.18,146.12,3.40276253]
[1750855053649,3.40276253,146.18,146.12,3.40276253]
[1750855053846,41.82,146.19,146.09,48.5477]
[1750855054041,41.82,146.19,146.12,3.40276253]
[1750855054241,41.82,146.19,146.15,6.8383]
[1750855054443,41.82,146.19,146.12,3.40276253]
[1750855054851,48.6569,146.19,146.12,3.40276253]
[1750855055346,52.05966253,146.19,146.12,3.40276253]
[1750855055547,45.22276253,146.19,146.12,3.40276253]
[1750855055855,45.22276253,146.19,146.14,6.8391]
[1750855056248,41.82,146.19,146.11,5.61374123]
[1750855056552,41.82,146.19,146.15,6.8383]
[1750855056752,48.6568,146.19,146.15,6.8383]
[1750855057254,41.82,146.19,146.15,6.8383]
[1750855057449,41.82,146.19,146.16,6.8382]
[1750855057654,12.45014123,146.2,146.16,6.8382]
[1750855058154,6.8368,146.19,146.15,6.8385]
[1750855058653,6.8368,146.19,146.11,5.61374123]
[1750855059751,6.8368,146.19,146.15,6.8383]
[1750855059956,5.61374123,146.2,146.12,41.8]
[1750855060260,4.97675001,146.21,146.17,6.8374]
[1750855060440,4.97675001,146.21,146.13,5.61374123]
[1750855060645,52.39049124,146.22,146.13,5.61374123]
[1750855060841,52.39049124,146.22,146.19,6.8365]
[1750855061248,52.39049124,146.22,146.13,5.61374123]
[1750855061454,6.836,146.21,146.13,5.61374123]
[1750855061653,11.81275001,146.21,146.13,5.61374123]
[1750855062353,4.97675001,146.21,146.12,47.41374123]
[1750855062548,4.97675001,146.2,146.12,47.41374123]
[1750855062755,6.8368,146.19,146.16,6.8379]
[1750855062949,4.97675001,146.2,146.16,6.8379]
[1750855063145,10.5977349,146.2,146.12,41.8]
[1750855063345,12.45124123,146.18,146.12,41.8]
[1750855063851,12.45124123,146.18,146.15,6.8384]
[1750855064362,4.98774676,146.17,146.15,6.8384]
[1750855064653,12.45124123,146.18,146.15,6.8384]
[1750855064853,6.838,146.17,146.14,6.8391]
[1750855065061,11.82549669,146.17,146.14,6.8391]
[1750855065351,4.98749669,146.16,146.14,6.8391]
[1750855065858,4.99061844,146.16,146.14,6.8391]
[1750855066049,6.838,146.17,146.14,6.8391]
[1750855066250,11.30154102,146.19,146.12,41.8]
[1750855066457,4.9908868,146.18,146.12,41.8]
[1750855066652,5.61374123,146.19,146.12,41.8]
[1750855066847,11.82845019,146.18,146.15,6.8384]
[1750855067044,4.99068502,146.17,146.12,41.8]
[1750855067242,4.99068502,146.17,146.09,6.7277]
[1750855067243,11.83042055,146.16,146.09,48.5077]
[1750855067450,5.61374123,146.17,146.09,48.5077]
[1750855067662,4.99215298,146.16,146.09,48.5077]
[1750855067851,4.99215298,146.17,146.15,6.8384]
[1750855068156,41.78,146.18,146.1,5.61374123]
[1750855068356,5.0204506,146.17,146.15,6.8384]
[1750855068556,48.6174,146.18,146.15,6.8384]
[1750855068759,5.02044868,146.17,146.15,6.8384]
[1750855068950,41.78,146.18,146.16,6.8382]
[1750855069152,5.02026499,146.17,146.16,6.8382]
[1750855069351,5.02026499,146.17,146.09,54.12144123]
[1750855069556,53.11554315,146.18,146.15,6.8383]
[1750855069754,5.02289613,146.17,146.15,6.8383]
[1750855069952,48.6173,146.18,146.15,6.8383]
[1750855070152,5.018917,146.17,146.16,6.8382]
[1750855070555,5.018917,146.17,146.09,48.5077]
[1750855070757,41.78,146.18,146.09,54.12144123]
[1750855070965,5.01884647,146.17,146.09,54.12144123]
[1750855071160,46.28291462,146.18,146.09,54.12144123]
[1750855071357,5.02144337,146.17,146.09,54.12144123]
[1750855071663,41.78,146.18,146.09,54.12144123]
[1750855071853,5.0209624,146.17,146.09,54.12144123]
[1750855072053,41.78,146.18,146.09,54.12144123]
[1750855072254,5.02047561,146.17,146.09,54.12144123]
[1750855072455,41.78,146.18,146.16,6.8382]
[1750855072657,41.78,146.18,146.09,54.12144123]
[1750855072864,46.74967961,146.18,146.09,54.12144123]
[1750855073166,51.25654262,146.18,146.09,54.12144123]
[1750855073362,53.12468167,146.18,146.09,54.12144123]
[1750855073558,48.6173,146.18,146.15,6.8384]
[1750855075563,41.78,146.22,146.11,5.61374123]
[1750855075865,9.48712969,146.21,146.13,5.61374123]
[1750855076062,9.48712969,146.21,146.19,6.8366]
[1750855076063,4.97615345,146.2,146.19,6.8366]
[1750855076268,41.78,146.22,146.13,47.39374123]
[1750855076454,46.75662104,146.22,146.15,5.61374123]
[1750855076661,46.75662104,146.22,146.16,2.3937]
[1750855076861,41.78,146.22,146.16,7.0607]
[1750855077068,4.97662104,146.22,146.21,6.8359]
[1750855077268,51.26664798,146.25,146.16,7.0607]
[1750855077465,51.26664798,146.25,146.17,41.78]
[1750855077663,53.59082104,146.25,146.17,41.78]
[1750855077970,638.75374123,146.26,146.17,41.78]
[1750855078169,4.97316116,146.25,146.17,41.78]
[1750855078371,8.33895337,146.25,146.17,45.14579221]
[1750855078670,15.17325337,146.25,146.22,6.8351]
[1750855079375,6.8345,146.24,146.21,6.8357]
[1750855080072,15.17226919,146.25,146.17,45.14579221]
[1750855080369,10.19989221,146.25,146.17,45.14579221]
[1750855080769,3.36579221,146.25,146.17,45.14579221]
[1750855081272,15.19875885,146.25,146.17,45.14579221]
[1750855081466,8.36475885,146.25,146.17,41.78]
[1750855081667,3.36579221,146.25,146.17,45.14579221]
[1750855082166,10.19999221,146.25,146.17,45.14579221]
[1750855082374,10.19999221,146.25,146.17,41.78]
[1750855082573,10.19999221,146.25,146.22,6.8352]
[1750855082973,6.8345,146.24,146.17,45.14579221]
[1750855083274,8.36284718,146.25,146.17,45.14579221]
[1750855083674,3.36579221,146.25,146.21,6.8355]
[1750855083974,8.36496843,146.25,146.21,6.8355]
[1750855084378,6.8352,146.23,146.21,6.8355]
[1750855085174,41.36,146.22,146.12,3.36579221]
[1750855085475,3.36579221,146.19,146.12,44.72579221]
[1750855085770,3.36579221,146.19,146.18,6.8372]
[1750855088078,15.21437028,146.21,146.19,6.8367]
[1750855088271,3.36579221,146.21,146.13,3.36579221]
[1750855089168,3.36579221,146.21,146.19,6.8365]
[1750855089368,10.20169221,146.21,146.19,6.8365]
[1750855092179,5.03892002,146.2,146.19,6.8365]
[1750855093776,5.03892002,146.2,146.15,2.413]
[1750855093974,3.36579221,146.21,146.15,2.413]
[1750855094174,9.57219194,146.2,146.15,2.413]
[1750855094376,9.57219194,146.19,146.18,6.837]
[1750855094576,9.58119079,146.19,146.18,6.837]
[1750855096182,5.01900476,146.19,146.18,6.837]
[1750855096586,5.03714876,146.19,146.18,6.837]
[1750855100483,44.72579221,146.22,146.15,5.77879221]
[1750855100684,9.59707092,146.21,146.15,5.77879221]
[1750855100981,5.03344404,146.2,146.16,2.389]
[1750855101181,3.36579221,146.22,146.16,46.1807]
[1750855101482,5.03345881,146.21,146.2,6.8363]
[1750855102181,11.39830828,146.23,146.2,6.8363]
[1750855102377,9.59693843,146.22,146.2,6.8363]
[1750855102683,5.03363015,146.21,146.2,6.8363]
[1750855104095,10.19959221,146.26,146.23,6.8348]
[1750855104274,4.56784004,146.25,146.23,6.8348]
[1750855104480,10.19959221,146.26,146.23,6.8348]
[1750855104679,4.56694627,146.25,146.23,6.8348]
[1750855104875,10.19959221,146.26,146.24,6.8345]
[1750855105287,14.76666889,146.26,146.24,6.8345]
[1750855105680,6.8343,146.25,146.23,6.8347]
[1750855105986,6.8343,146.25,146.17,3.36579221]
[1750855105987,11.40137668,146.25,146.17,3.36579221]
[1750855106280,10.20049221,146.24,146.16,63.22259221]
[1750855106790,10.20049221,146.24,146.21,6.8356]
[1750855106988,14.76756889,146.24,146.21,6.8356]
[1750855107283,3.36579221,146.24,146.19,6.8366]
[1750855107486,3.36579221,146.22,146.16,46.1807]
[1750855108283,10.20139221,146.22,146.19,6.8364]
[1750855108682,10.20139221,146.22,146.16,46.1807]
[1750855109480,3.36579221,146.22,146.16,46.1807]
[1750855109679,3.36579221,146.22,146.19,6.8365]
[1750855110087,10.20139221,146.22,146.16,46.1807]
[1750855111388,10.20139221,146.22,146.2,6.8363]
[1750855112385,6.8359,146.21,146.19,6.8366]
[1750855112693,7.93893126,146.2,146.12,39.84]
[1750855112879,3.36579221,146.17,146.12,39.84]
[1750855113080,10.20379221,146.17,146.12,39.84]
[1750855113685,10.20379221,146.17,146.15,6.8386]
[1750855114086,3.36579221,146.17,146.15,6.8386]
[1750855114986,3.36579221,146.17,146.12,39.84]
[1750855115193,3.36579221,146.17,146.16,6.8382]
[1750855120188,50.04289221,146.19,146.17,6.8377]
[1750855120391,4.96163285,146.18,146.17,6.8377]
[1750855121489,4.96163285,146.18,146.16,6.8379]
[1750855121697,6.8374,146.18,146.16,6.8379]
[1750855121990,12.88292227,146.17,146.15,6.8384]
[1750855122187,3.36579221,146.17,146.15,6.8384]
[1750855122394,7.92054693,146.17,146.15,6.8384]
[1750855122590,3.36579221,146.17,146.15,6.8384]